[Event "Athens of East GM-Open 2019"]
[Site "Madurai"]
[Date "2019.08.11"]
[Round "1.19"]
[White "Avinash Ramesh"]
[Black "Om Kharola"]
[Result "1/2-1/2"]
[ECO "C54"]
[WhiteElo "1848"]
[BlackElo "2357"]
[Annotator "NA"]
[PlyCount "140"]
[EventDate "2019.08.11"]
[EventType "swiss"]
[EventCountry "IND"]
[SourceTitle "playchess.com"]
[Source "ChessBase"]
[SourceQuality "1"]
[TimeControl "5400+30"]

1. e4 {[%emt 0:00:00]} e5 {[%emt 0:00:00]} 2. Nf3 {[%emt 0:00:00]} Nc6 {[%emt 0:00:00]} 3. Bc4 {[%emt 0:00:00]} Bc5 {[%emt 0:00:00]} 4. c3 {[%emt 0:00:00]} Nf6 {[%emt 0:00:00]} 5. d3 {[%emt 0:00:01]} a6 {[%emt 0:00:00]} 6. Bb3 {[%emt 0:00:11]} Ba7 {[%emt 0:00:09]} 7. h3 {[%emt 0:01:16]} h6 {[%emt 0:00:13]} 8. Nbd2 {[%emt 0:00:31]} d6 {[%emt 0:00:15]} 9. Nf1 {[%emt 0:00:21]} Ne7 {[%emt 0:04:36]} 10. Ng3 {[%emt 0:06:49]} Ng6 {[%emt 0:05:11]} 11. Nf5 {[%emt 0:15:57]} Bxf5 {[%emt 0:00:54]} 12. exf5 {[%emt 0:00:02]} Ne7 {[%emt 0:00:19]} 13. g4 {[%emt 0:01:56]} Qd7 {[%emt 0:01:27]} 14. Qe2 {[%emt 0:05:06]} g6 {[%emt 0:24:46]} 15. fxg6 {[%emt 0:11:29]} fxg6 {[%emt 0:01:47]} 16. g5 {[%emt 0:14:12]} Nfd5 {[%emt 0:00:24]} 17. gxh6 {[%emt 0:11:21]} Rf8 {[%emt 0:00:30]} 18. Bd2 {[%emt 0:13:22]} Qc6 {[%emt 0:13:39]} 19. O-O-O {[%emt 0:05:21]} Nxc3 {[%emt 0:02:10]} 20. bxc3 {[%emt 0:00:45]} Rxf3 {[%emt 0:04:45]} 21. h7 {[%emt 0:01:48]} Kd7 {[%emt 0:07:59]} 22. d4 {[%emt 0:01:29]} Bxd4 {[%emt 0:00:53]} 23. Kb1 {[%emt 0:01:25]} Ba7 {[%emt 0:02:18]} 24. Bg8 {[%emt 0:03:01]} Rxg8 {[%emt 0:00:09]} 25. hxg8=Q {[%emt 0:00:09]} Nxg8 {[%emt 0:00:13]} 26. Rhg1 {[%emt 0:01:24]} Ne7 {[%emt 0:00:44]} 27. Be1 {[%emt 0:00:46]} Qb5+ {[%emt 0:10:34]} 28. Qxb5+ {[%emt 0:00:04]} axb5 {[%emt 0:20:05]} 29. Rg3 {[%emt 0:01:02]} Rf6 {[%emt 0:00:00]} 30. Rd2 {[%emt 0:01:07]} Ke6 {[%emt 0:00:00]} 31. Kc1 {[%emt 0:01:13]} c6 {[%emt 0:00:00]} 32. Kd1 {[%emt 0:00:37]} Nd5 {[%emt 0:00:00]} 33. Ke2 {[%emt 0:01:19]} e4 {[%emt 0:00:00]} 34. Rc2 {[%emt 0:01:22]} Nf4+ {[%emt 0:00:00]} 35. Kf1 {[%emt 0:00:25]} d5 {[%emt 0:00:00]} 36. Rb2 {[%emt 0:01:13]} Nd3 {[%emt 0:00:00]} 37. Re2 {[%emt 0:00:04]} Kf7 {[%emt 0:00:00]} 38. Rd2 {[%emt 0:00:29]} Ne5 {[%emt 0:00:00]} 39. Rc2 {[%emt 0:00:54]} Bc5 {[%emt 0:00:00]} 40. Re2 {[%emt 0:00:53]} Nd3 {[%emt 0:00:00]} 41. Rd2 {[%emt 0:00:30]} Nf4 {[%emt 0:00:00]} 42. Rb2 {[%emt 0:00:34]} Ba3 {[%emt 0:00:00]} 43. Rd2 {[%emt 0:00:21]} Bd6 {[%emt 0:00:00]} 44. Rc2 {[%emt 0:00:36]} Nd3 {[%emt 0:00:00]} 45. Rg2 {[%emt 0:00:28]} Rf3 {[%emt 0:00:00]} 46. h4 {[%emt 0:00:10]} Rh3 {[%emt 0:00:00]} 47. Bd2 {[%emt 0:00:20]} Rxh4 {[%emt 0:00:00]} 48. Be3 {[%emt 0:00:15]} Bc5 {[%emt 0:00:00]} 49. Bxc5 {[%emt 0:00:06]} Nxc5 {[%emt 0:00:00]} 50. Rg1 {[%emt 0:00:56]} Rh3 {[%emt 0:00:15]} 51. Rg3 {[%emt 0:00:18]} Rh1+ {[%emt 0:00:59]} 52. Rg1 {[%emt 0:00:01]} Rxg1+ {[%emt 0:00:19]} 53. Kxg1 {[%emt 0:00:01]} Nd3 {[%emt 0:00:09]} 54. Kf1 {[%emt 0:00:12]} Ke6 {[%emt 0:01:28]} 55. Ke2 {[%emt 0:00:03]} Ke5 {[%emt 0:00:39]} 56. Rd2 {[%emt 0:00:37]} c5 {[%emt 0:01:05]} 57. a3 {[%emt 0:01:17]} d4 {[%emt 0:03:52]} 58. cxd4+ {[%emt 0:01:10]} Kxd4 {[%emt 0:00:06]} 59. Rd1 {[%emt 0:00:04]} c4 {[%emt 0:00:20]} 60. Rb1 {[%emt 0:00:36]} c3 {[%emt 0:00:24]} 61. Kd1 {[%emt 0:00:01]} Nxf2+ {[%emt 0:00:52]} 62. Kc2 {[%emt 0:00:01]} Nd3 {[%emt 0:02:12]} 63. Rg1 {[%emt 0:00:02]} b4 {[%emt 0:00:52]} 64. axb4 {[%emt 0:00:42]} Nxb4+ {[%emt 0:00:07]} 65. Kb3 {[%emt 0:00:04]} e3 {[%emt 0:00:17]} 66. Kxb4 {[%emt 0:02:08]} e2 {[%emt 0:00:17]} 67. Kb3 {[%emt 0:00:36]} Kd3 {[%emt 0:00:09]} 68. Rxg6 {[%emt 0:00:11]} Kd2 {[%emt 0:03:26]} 69. Rd6+ {[%emt 0:00:07]} Ke3 {[%emt 0:00:23]} 70. Re6+ {[%emt 0:00:05]} Kd3 {[%emt 0:00:06]} 1/2-1/2

[Event "Athens of East GM-Open 2019"]
[Site "Madurai"]
[Date "2019.08.12"]
[Round "2.13"]
[White "Konguvel, Ponnuswamy"]
[Black "Gias Uddin, Ahmed"]
[Result "1-0"]
[ECO "B81"]
[WhiteElo "2343"]
[BlackElo "1984"]
[Annotator "ChessBase"]
[PlyCount "70"]
[EventDate "2019.08.11"]
[EventType "swiss"]
[EventCountry "IND"]
[SourceTitle "playchess.com"]
[Source "ChessBase"]
[SourceQuality "1"]
[TimeControl "5400+30"]

1. e4 {[%emt 0:00:00]} c5 {[%emt 0:00:00]} 2. Nf3 {[%emt 0:00:16]} d6 {[%emt 0:00:00]} 3. d4 {[%emt 0:00:15]} cxd4 {[%emt 0:00:05]} 4. Nxd4 {[%emt 0:00:04]} Nf6 {[%emt 0:00:05]} 5. Nc3 {[%emt 0:00:04]} a6 {[%emt 0:00:07]} 6. h3 {[%emt 0:00:46]} b5 {[%emt 0:00:18]} 7. g4 {[%emt 0:01:57]} Bb7 {[%emt 0:00:58]} 8. Bg2 {[%emt 0:00:37]} e6 {[%emt 0:01:55]} 9. g5 {[%emt 0:04:50]} b4 {[%emt 0:02:24]} 10. gxf6 {[%emt 0:01:26]} bxc3 {[%emt 0:00:07]} 11. fxg7 {[%emt 0:00:13]} Bxg7 {[%emt 0:00:22]} 12. bxc3 {[%emt 0:00:09]} Qc7 {[%emt 0:05:54]} 13. Bd2 {[%emt 0:07:24]} Nd7 {[%emt 0:07:34]} 14. O-O {[%emt 0:12:08]} Nc5 {[%emt 0:02:17]} 15. Re1 {[%emt 0:02:13]} h5 {[%emt 0:10:59]} 16. Rb1 {[%emt 0:06:35]} Bf6 {[%emt 0:05:29]} 17. Qf3 {[%emt 0:14:10]} Be7 {[%emt 0:02:38]} 18. Qe2 {[%emt 0:08:27]} O-O-O {[%emt 0:05:47]} 19. Nb3 {[%emt 0:00:24]} Rdg8 {[%emt 0:06:35]} 20. Nxc5 {[%emt 0:00:20]} dxc5 {[%emt 0:00:42]} 21. Kh1 {[%emt 0:11:01]} f5 {[%emt 0:07:17]} 22. Qf1 {[%emt 0:07:18]} f4 {[%emt 0:01:02]} 23. Qc4 {[%emt 0:03:53]} Rg6 {[%emt 0:08:17]} 24. Bf3 {[%emt 0:00:09]} Bh4 {[%emt 0:07:35]} 25. Rg1 {[%emt 0:01:55]} Rxg1+ {[%emt 0:02:23]} 26. Rxg1 {[%emt 0:00:02]} Qd6 {[%emt 0:09:00]} 27. Be1 {[%emt 0:00:48]} Rh6 {[%emt 0:05:03]} 28. Rg8+ {[%emt 0:02:58]} Bd8 {[%emt 0:00:16]} 29. Qd3 {[%emt 0:07:47]} Qc7 {[%emt 0:01:12]} 30. e5 {[%emt 0:01:22]} Bxf3+ {[%emt 0:01:37]} 31. Qxf3 {[%emt 0:00:02]} Rh7 {[%emt 0:03:21]} 32. Qa8+ {[%emt 0:01:36]} Kd7 {[%emt 0:00:15]} 33. Qxa6 {[%emt 0:02:16]} Be7 {[%emt 0:01:54]} 34. Qd3+ {[%emt 0:00:13]} Kc6 {[%emt 0:00:19]} 35. Qxh7 {[%emt 0:00:13]} Kd5 {[%emt 0:03:43]} 1-0

[Event "Athens of East GM-Open 2019"]
[Site "Madurai"]
[Date "2019.08.12"]
[Round "2.14"]
[White "Sooraj M R"]
[Black "Rajesh, V A V"]
[Result "*"]
[ECO "C27"]
[WhiteElo "1934"]
[BlackElo "2368"]
[Annotator "ChessBase"]
[PlyCount "50"]
[EventDate "2019.08.11"]
[EventType "swiss"]
[EventCountry "IND"]
[SourceTitle "playchess.com"]
[Source "ChessBase"]
[SourceQuality "1"]
[TimeControl "5400+30"]

1. e4 {[%emt 0:00:00]} e5 {[%emt 0:00:00]} 2. Nc3 {[%emt 0:00:00]} Nf6 {[%emt 0:02:49]} 3. Bc4 {[%emt 0:00:01]} Bc5 {[%emt 0:02:14]} 4. d3 {[%emt 0:00:14]} c6 {[%emt 0:04:42]} 5. Qf3 {[%emt 0:02:32]} d6 {[%emt 0:01:55]} 6. Nge2 {[%emt 0:05:34]} Be6 {[%emt 0:02:23]} 7. Be3 {[%emt 0:05:29]} Bb4 {[%emt 0:03:56]} 8. a3 {[%emt 0:03:32]} Ba5 {[%emt 0:00:14]} 9. Bxe6 {[%emt 0:06:16]} fxe6 {[%emt 0:00:04]} 10. Qh3 {[%emt 0:00:08]} Qe7 {[%emt 0:00:06]} 11. f4 {[%emt 0:00:53]} Nbd7 {[%emt 0:00:15]} 12. O-O {[%emt 0:00:40]} O-O {[%emt 0:03:11]} 13. f5 {[%emt 0:03:12]} exf5 {[%emt 0:04:36]} 14. Rxf5 {[%emt 0:05:05]} Bb6 {[%emt 0:01:29]} 15. Bxb6 {[%emt 0:00:55]} axb6 {[%emt 0:00:04]} 16. Raf1 {[%emt 0:01:32]} Nc5 {[%emt 0:01:32]} 17. Qe3 {[%emt 0:06:16]} b5 {[%emt 0:03:45]} 18. Ng3 {[%emt 0:02:21]} g6 {[%emt 0:04:45]} 19. R5f3 {[%emt 0:14:14]} Ne6 {[%emt 0:01:58]} 20. Nge2 {[%emt 0:02:28]} Ng4 {[%emt 0:03:24]} 21. Rf6 {[%emt 0:39:08]} Rf7 22. Rxf7 {[%emt 0:00:00]} Rc8 {[%emt 0:57:38]} 23. Rf8+ Rxf8 {[%emt 0:00:00]} 24. Rf5 {[%emt 0:01:30]} Rf7 25. Rxf7 {[%emt 0:00:00]} Qf8 {[%emt 0:00:00]} *

[Event "Athens of East GM-Open 2019"]
[Site "Madurai"]
[Date "2019.08.12"]
[Round "2.17"]
[White "Mohamed Anees M"]
[Black "Rathnakaran, K.."]
[Result "0-1"]
[ECO "A56"]
[WhiteElo "1846"]
[BlackElo "2344"]
[Annotator "ChessBase"]
[PlyCount "108"]
[EventDate "2019.08.11"]
[EventType "swiss"]
[EventCountry "IND"]
[SourceTitle "playchess.com"]
[Source "ChessBase"]
[SourceQuality "1"]
[TimeControl "5400+30"]

1. d4 {[%emt 0:00:00]} Nf6 {[%emt 0:00:00]} 2. c4 {[%emt 0:00:00]} c5 {[%emt 0:00:00]} 3. d5 {[%emt 0:00:02]} e5 {[%emt 0:00:00]} 4. Nc3 {[%emt 0:03:22]} d6 {[%emt 0:00:00]} 5. Qc2 {[%emt 0:02:15]} Be7 {[%emt 0:00:13]} 6. e3 {[%emt 0:00:46]} O-O {[%emt 0:00:07]} 7. Nf3 {[%emt 0:00:08]} Na6 {[%emt 0:00:06]} 8. a3 {[%emt 0:01:05]} Nc7 {[%emt 0:00:05]} 9. Bd3 {[%emt 0:05:52]} Rb8 {[%emt 0:00:11]} 10. O-O {[%emt 0:00:41]} Bd7 {[%emt 0:00:51]} 11. Rd1 {[%emt 0:01:42]} h6 {[%emt 0:03:35]} 12. h3 {[%emt 0:06:28]} Nfe8 {[%emt 0:00:56]} 13. Bh7+ {[%emt 0:02:06]} Kh8 {[%emt 0:00:10]} 14. Bf5 {[%emt 0:00:03]} Bxf5 {[%emt 0:02:40]} 15. Qxf5 {[%emt 0:00:18]} g6 {[%emt 0:00:36]} 16. Qc2 {[%emt 0:01:23]} f5 {[%emt 0:00:06]} 17. b4 {[%emt 0:03:20]} b6 {[%emt 0:00:07]} 18. Bb2 {[%emt 0:03:18]} Bf6 {[%emt 0:01:36]} 19. Ne2 {[%emt 0:04:46]} Ng7 {[%emt 0:00:08]} 20. Nh2 {[%emt 0:01:44]} Qd7 {[%emt 0:02:33]} 21. Bc3 {[%emt 0:10:59]} Na6 {[%emt 0:07:28]} 22. b5 {[%emt 0:00:43]} Nc7 {[%emt 0:00:10]} 23. Qb2 {[%emt 0:00:56]} Qe7 {[%emt 0:03:09]} 24. a4 {[%emt 0:01:21]} g5 {[%emt 0:00:11]} 25. a5 {[%emt 0:03:20]} Na8 {[%emt 0:01:44]} 26. axb6 {[%emt 0:06:16]} Nxb6 {[%emt 0:00:24]} 27. Qb3 {[%emt 0:00:08]} h5 {[%emt 0:00:29]} 28. f3 {[%emt 0:06:21]} e4 {[%emt 0:03:13]} 29. f4 {[%emt 0:00:21]} g4 {[%emt 0:00:42]} 30. hxg4 {[%emt 0:01:50]} fxg4 {[%emt 0:00:21]} 31. Kf2 {[%emt 0:02:16]} Kg8 {[%emt 0:03:54]} 32. g3 {[%emt 0:00:49]} Rb7 {[%emt 0:00:42]} 33. Rg1 {[%emt 0:10:21]} Nf5 {[%emt 0:00:45]} 34. Rac1 {[%emt 0:03:13]} Nd7 {[%emt 0:03:34]} 35. Ra1 {[%emt 0:01:28]} Qg7 {[%emt 0:00:47]} 36. Bxf6 {[%emt 0:00:50]} Qxf6 {[%emt 0:01:18]} 37. Qc3 {[%emt 0:00:49]} Qxc3 {[%emt 0:01:31]} 38. Nxc3 {[%emt 0:00:04]} Nb6 {[%emt 0:00:05]} 39. Nxe4 {[%emt 0:01:07]} Nxc4 {[%emt 0:01:47]} 40. Rgc1 {[%emt 0:01:25]} Ncxe3 {[%emt 0:02:50]} 41. Nxd6 {[%emt 0:01:37]} Nxd6 {[%emt 0:00:11]} 42. Kxe3 {[%emt 0:00:03]} Re8+ {[%emt 0:03:02]} 43. Kd3 {[%emt 0:02:43]} Rxb5 {[%emt 0:00:26]} 44. Nf1 {[%emt 0:01:11]} Rb3+ {[%emt 0:04:37]} 45. Kc2 {[%emt 0:03:41]} c4 {[%emt 0:00:10]} 46. Re1 {[%emt 0:02:09]} Reb8 {[%emt 0:04:21]} 47. Re6 {[%emt 0:01:05]} Nb5 {[%emt 0:00:45]} 48. Rg6+ {[%emt 0:00:34]} Kf7 {[%emt 0:00:13]} 49. Rh6 {[%emt 0:02:05]} Nd4+ {[%emt 0:05:46]} 50. Kc1 {[%emt 0:00:05]} Rc3+ {[%emt 0:00:33]} 51. Kd1 {[%emt 0:00:05]} Rd3+ {[%emt 0:00:05]} 52. Nd2 {[%emt 0:00:05]} c3 {[%emt 0:00:35]} 53. Rxa7+ {[%emt 0:03:47]} Kg8 {[%emt 0:00:08]} 54. Rg6+ {[%emt 0:00:01]} Kf8 {[%emt 0:00:07]} 0-1

[Event "Athens of East GM-Open 2019"]
[Site "Madurai"]
[Date "2019.08.12"]
[Round "2.18"]
[White "Shreyash Shuvam Patnaik"]
[Black "Kunal, M.."]
[Result "0-1"]
[ECO "B13"]
[WhiteElo "1885"]
[BlackElo "2306"]
[Annotator "ChessBase"]
[PlyCount "64"]
[EventDate "2019.08.11"]
[EventType "swiss"]
[EventCountry "IND"]
[SourceTitle "playchess.com"]
[Source "ChessBase"]
[SourceQuality "1"]
[TimeControl "5400+30"]

1. e4 {[%emt 1:30:30]} c6 {[%emt 0:03:30]} 2. d4 {[%emt 0:00:00]} d5 {[%emt 0:00:05]} 3. exd5 {[%emt 0:00:00]} cxd5 {[%emt 0:00:08]} 4. c4 {[%emt 0:00:00]} Nf6 {[%emt 0:00:11]} 5. Nc3 {[%emt 0:00:00]} Nc6 {[%emt 0:00:10]} 6. Bg5 {[%emt 0:00:00]} Be6 {[%emt 0:00:10]} 7. Nf3 {[%emt 0:00:00]} g6 {[%emt 0:00:21]} 8. Bxf6 {[%emt 0:00:00]} exf6 {[%emt 0:00:07]} 9. c5 {[%emt 0:00:00]} Bg7 {[%emt 0:00:41]} 10. Bb5 {[%emt 0:00:00]} O-O {[%emt 0:00:22]} 11. Bxc6 {[%emt 0:00:00]} bxc6 {[%emt 0:00:16]} 12. O-O {[%emt 0:00:00]} Bg4 {[%emt 0:02:00]} 13. h3 {[%emt 0:00:00]} Bxf3 {[%emt 0:00:06]} 14. Qxf3 {[%emt 0:00:00]} f5 {[%emt 0:00:05]} 15. Rfd1 {[%emt 0:00:00]} Rb8 {[%emt 0:00:22]} 16. Rab1 {[%emt 0:00:00]} Qa5 {[%emt 0:00:52]} 17. a3 {[%emt 0:00:00]} Rb3 {[%emt 0:01:35]} 18. Rd3 {[%emt 0:00:00]} Qa6 {[%emt 0:01:22]} 19. Qd1 {[%emt 0:00:00]} Rfb8 {[%emt 0:00:24]} 20. Rd2 {[%emt 0:00:00]} h5 {[%emt 0:02:23]} 21. Na2 {[%emt 0:00:00]} Bh6 {[%emt 0:16:18]} 22. Rc2 {[%emt 0:00:00]} Qb5 {[%emt 0:11:21]} 23. Nb4 {[%emt 0:00:00]} a5 {[%emt 0:00:40]} 24. Rc3 {[%emt 0:00:00]} Rxc3 {[%emt 0:04:47]} 25. bxc3 {[%emt 0:00:00]} Qb7 {[%emt 0:03:18]} 26. Qa4 {[%emt 0:00:00]} axb4 {[%emt 0:00:40]} 27. Rb2 {[%emt 0:13:00]} b3 28. Rxb3 {[%emt 0:00:00]} Ra8 {[%emt 0:00:42]} 29. Rb4 {[%emt 0:00:00]} Qe7 {[%emt 0:01:27]} 30. Qb3 {[%emt 0:00:00]} Kg7 {[%emt 0:01:31]} 31. Rb8 {[%emt 0:00:00]} Bd2 {[%emt 0:00:18]} 32. Kf1 {[%emt 0:00:00]} Qe1# {[%emt 0:01:22] g3 Qe4 Kg1 Rxb8 Qxb8 Bxc3 Qb7 Bxd4} 0-1

[Event "Athens of East GM-Open 2019"]
[Site "Madurai"]
[Date "2019.08.12"]
[Round "2.19"]
[White "Sahoo, Utkal Ranjan"]
[Black "Manthan Kashyap Datta"]
[Result "1-0"]
[ECO "A45"]
[WhiteElo "2278"]
[BlackElo "1861"]
[Annotator "ChessBase"]
[PlyCount "107"]
[EventDate "2019.08.11"]
[EventType "swiss"]
[EventCountry "IND"]
[SourceTitle "playchess.com"]
[Source "ChessBase"]
[SourceQuality "1"]
[TimeControl "5400+30"]

1. d4 {[%emt 0:00:00]} Nf6 {[%emt 0:00:00]} 2. Bg5 {[%emt 0:00:00]} Ne4 {[%emt 0:00:00]} 3. Bf4 {[%emt 0:00:00]} c5 {[%emt 0:00:41]} 4. d5 {[%emt 0:00:34]} Qa5+ {[%emt 0:00:39]} 5. c3 {[%emt 0:00:40]} Qb6 {[%emt 0:00:08]} 6. Bc1 {[%emt 0:01:50]} e6 {[%emt 0:00:13]} 7. f3 {[%emt 0:00:17]} Nf6 {[%emt 0:00:08]} 8. e4 {[%emt 0:00:08]} exd5 {[%emt 0:00:07]} 9. exd5 {[%emt 0:00:59]} Be7 {[%emt 0:00:28]} 10. Na3 {[%emt 0:05:47]} d6 {[%emt 0:01:31]} 11. Nc4 {[%emt 0:01:50]} Qc7 {[%emt 0:01:25]} 12. a4 {[%emt 0:00:15]} O-O {[%emt 0:00:52]} 13. Ne2 {[%emt 0:09:50]} Nh5 {[%emt 0:09:28]} 14. Kf2 {[%emt 0:10:23]} f5 {[%emt 0:03:08]} 15. Nf4 {[%emt 0:01:54]} Nxf4 {[%emt 0:01:26]} 16. Bxf4 {[%emt 0:00:02]} Nd7 {[%emt 0:00:28]} 17. Qd2 {[%emt 0:02:59]} Nf6 {[%emt 0:06:17]} 18. Re1 {[%emt 0:01:43]} Re8 {[%emt 0:01:39]} 19. h4 {[%emt 0:01:44]} Bd7 {[%emt 0:01:58]} 20. Rxe7 {[%emt 0:03:38]} Rxe7 {[%emt 0:03:16]} 21. Bxd6 {[%emt 0:01:39]} Qd8 {[%emt 0:00:12]} 22. Bxe7 {[%emt 0:00:09]} Qxe7 {[%emt 0:00:07]} 23. d6 {[%emt 0:01:11]} Qe6 {[%emt 0:16:53]} 24. Na3 {[%emt 0:08:35]} Kh8 {[%emt 0:07:28]} 25. Bc4 {[%emt 0:03:55]} Qe5 {[%emt 0:00:25]} 26. Bb5 {[%emt 0:01:30]} Bxb5 {[%emt 0:12:42]} 27. axb5 {[%emt 0:00:13]} Rd8 {[%emt 0:00:58]} 28. Nc4 {[%emt 0:07:57]} Qe6 {[%emt 0:09:35]} 29. Qe2 {[%emt 0:04:06]} Qxe2+ {[%emt 0:02:05]} 30. Kxe2 {[%emt 0:00:02]} Kg8 {[%emt 0:01:16]} 31. Ra1 {[%emt 0:00:47]} Ra8 {[%emt 0:02:06]} 32. Kf2 {[%emt 0:01:14]} Nd7 {[%emt 0:02:49]} 33. Re1 {[%emt 0:01:31]} Rf8 {[%emt 0:01:55]} 34. Na5 {[%emt 0:00:37]} b6 {[%emt 0:01:17]} 35. Nc6 {[%emt 0:00:52]} Nf6 {[%emt 0:02:03]} 36. Ne7+ {[%emt 0:04:23]} Kh8 {[%emt 0:00:06]} 37. Nxf5 {[%emt 0:00:41]} g6 {[%emt 0:00:03]} 38. Ng3 {[%emt 0:00:55]} Rd8 {[%emt 0:03:08]} 39. Rd1 {[%emt 0:00:05]} Kg7 {[%emt 0:00:19]} 40. Ne4 {[%emt 0:00:33]} Nxe4+ {[%emt 0:00:38]} 41. fxe4 {[%emt 0:00:02]} Kf6 {[%emt 0:00:10]} 42. Kf3 {[%emt 0:00:23]} Ke6 {[%emt 0:00:32]} 43. d7 {[%emt 0:00:13]} Rxd7 {[%emt 0:00:08]} 44. Rxd7 {[%emt 0:25:54]} Kxd7 {[%emt 0:00:04]} 45. Kf4 {[%emt 0:00:00]} Ke6 {[%emt 0:00:07]} 46. c4 {[%emt 0:00:00]} h6 {[%emt 0:00:45]} 47. e5 {[%emt 0:00:00]} Ke7 {[%emt 0:01:49]} 48. Ke4 {[%emt 0:00:00]} Ke6 {[%emt 0:00:07]} 49. g4 {[%emt 0:00:00]} h5 {[%emt 0:00:40]} 50. g5 {[%emt 0:00:00]} Ke7 {[%emt 0:00:03]} 51. Kd5 {[%emt 0:00:00]} Kd7 {[%emt 0:00:06]} 52. e6+ {[%emt 0:00:00]} Ke8 {[%emt 0:00:18]} 53. Ke5 {[%emt 0:00:00]} Ke7 {[%emt 0:00:08]} 54. b3 {[%emt 0:00:00]} 1-0

[Event "Athens of East GM-Open 2019"]
[Site "Madurai"]
[Date "2019.08.13"]
[Round "4.4"]
[White "Raja Rithvik R"]
[Black "Mosadeghpour, Masoud"]
[Result "1/2-1/2"]
[ECO "D35"]
[WhiteElo "2357"]
[BlackElo "2494"]
[Annotator "RC"]
[PlyCount "102"]
[EventDate "2019.08.11"]
[EventType "swiss"]
[EventCountry "IND"]
[SourceTitle "playchess.com"]
[Source "ChessBase"]
[SourceQuality "1"]
[TimeControl "5400+30"]

1. d4 {[%emt 0:00:00]} d5 {[%emt 0:10:29]} 2. c4 {[%emt 0:00:00]} e6 {[%emt 0:00:19]} 3. Nc3 {[%emt 0:00:02]} Nf6 {[%emt 0:00:08]} 4. cxd5 {[%emt 0:00:09]} exd5 {[%emt 0:00:06]} 5. Bg5 {[%emt 0:00:07]} Be7 {[%emt 0:02:18]} 6. e3 {[%emt 0:00:19]} h6 {[%emt 0:02:19]} 7. Bh4 {[%emt 0:00:14]} O-O {[%emt 0:01:23]} 8. Bd3 {[%emt 0:00:41]} c5 {[%emt 0:04:23]} 9. dxc5 {[%emt 0:01:39]} Nbd7 {[%emt 0:00:47]} 10. Nf3 {[%emt 0:04:18]} Nxc5 {[%emt 0:00:36]} 11. O-O {[%emt 0:01:13]} Bg4 {[%emt 0:05:19]} 12. Be2 {[%emt 1:27:18]} Nce4 {[%emt 0:03:39]} 13. Nxe4 {[%emt 0:00:00]} dxe4 {[%emt 0:00:52]} 14. Nd4 {[%emt 0:00:00]} Bxe2 {[%emt 0:04:55]} 15. Qxe2 {[%emt 0:00:00]} Qd5 {[%emt 0:12:10]} 16. Rfd1 {[%emt 0:00:00]} a6 {[%emt 0:07:44]} 17. Rac1 {[%emt 0:00:00]} Rac8 {[%emt 0:04:17]} 18. a3 {[%emt 0:00:00]} Rfd8 {[%emt 0:03:00]} 19. h3 {[%emt 0:00:00]} Kh7 {[%emt 0:08:45]} 20. Rc2 {[%emt 0:00:00]} Rxc2 {[%emt 0:09:42]} 21. Qxc2 {[%emt 0:00:00]} g5 {[%emt 0:03:47]} 22. Bg3 {[%emt 0:00:00]} Nh5 {[%emt 0:00:38]} 23. Rd2 {[%emt 0:00:00]} Nxg3 {[%emt 0:11:02]} 24. fxg3 {[%emt 0:00:00]} Bc5 {[%emt 0:00:26]} 25. b4 {[%emt 0:00:00]} Bb6 {[%emt 0:00:34]} 26. g4 {[%emt 0:00:00]} Qe5 {[%emt 0:01:13]} 27. Qc4 {[%emt 0:00:00]} Kg6 {[%emt 0:02:04]} 28. Rf2 {[%emt 0:00:00]} Qd5 {[%emt 0:00:04]} 29. Qxd5 {[%emt 0:00:00]} Rxd5 {[%emt 0:00:02]} 30. Rd2 {[%emt 0:00:00]} Kf6 {[%emt 0:01:27]} 31. Rf2+ {[%emt 0:00:00]} Ke7 {[%emt 0:00:26]} 32. Rf5 {[%emt 0:01:11]} Rd7 {[%emt 0:00:33]} 33. Re5+ {[%emt 0:03:27]} Kd6 {[%emt 0:00:07]} 34. Rf5 {[%emt 0:00:57]} Ke7 {[%emt 0:00:39]} 35. Re5+ {[%emt 0:00:05]} Kd6 {[%emt 0:00:06]} 36. Rf5 {[%emt 0:00:04]} Bxd4 {[%emt 0:01:07]} 37. exd4 {[%emt 0:00:01]} Kc6 {[%emt 0:00:16]} 38. Rc5+ {[%emt 0:02:44]} Kb6 {[%emt 0:00:01]} 39. d5 {[%emt 0:03:43]} Rc7 {[%emt 0:00:01]} 40. d6 {[%emt 0:00:14]} Rd7 {[%emt 0:00:04]} 41. Re5 {[%emt 0:01:28]} Rxd6 {[%emt 0:00:09]} 42. Rxe4 {[%emt 0:00:00]} Rd1+ {[%emt 0:02:19]} 43. Kh2 {[%emt 0:00:55]} Ra1 {[%emt 0:00:15]} 44. Re3 {[%emt 0:00:31]} Rf1 {[%emt 0:00:56]} 45. Re5 {[%emt 0:00:37]} Kc6 {[%emt 0:00:31]} 46. Rc5+ {[%emt 0:00:28]} Kb6 {[%emt 0:00:28]} 47. Re5 {[%emt 0:00:28]} f6 {[%emt 0:00:30]} 48. Rd5 {[%emt 0:00:24]} Ra1 {[%emt 0:00:22]} 49. Ra5 {[%emt 0:00:39]} Ka7 {[%emt 0:00:35]} 50. b5 {[%emt 0:00:31]} Rd1 {[%emt 0:00:36]} 51. bxa6 {[%emt 0:00:06]} b6 {[%emt 0:00:28]} 1/2-1/2

[Event "Athens of East GM-Open 2019"]
[Site "Madurai"]
[Date "2019.08.13"]
[Round "4.8"]
[White "Vasquez Schroeder, Rodrigo"]
[Black "Lakshmi Narayanan M V"]
[Result "1-0"]
[ECO "E17"]
[WhiteElo "2496"]
[BlackElo "2166"]
[Annotator "RC"]
[PlyCount "84"]
[EventDate "2019.08.11"]
[EventType "swiss"]
[EventCountry "IND"]
[SourceTitle "playchess.com"]
[Source "ChessBase"]
[SourceQuality "1"]
[TimeControl "5400+30"]

1. Nf3 {[%emt 0:00:00]} Nf6 {[%emt 0:00:00]} 2. c4 {[%emt 0:00:00]} b6 {[%emt 0:00:35]} 3. g3 {[%emt 0:02:07]} e6 {[%emt 0:00:43]} 4. Bg2 {[%emt 0:00:11]} Bb7 {[%emt 0:00:33]} 5. O-O {[%emt 0:00:12]} Be7 {[%emt 1:30:39]} 6. d4 {[%emt 0:04:41]} O-O {[%emt 0:00:00]} 7. Re1 {[%emt 0:00:25]} d5 {[%emt 0:00:00]} 8. cxd5 {[%emt 0:01:55]} exd5 {[%emt 0:00:00]} 9. Nc3 {[%emt 0:00:33]} Nbd7 {[%emt 0:00:00]} 10. Bf4 {[%emt 0:03:52]} c6 {[%emt 0:00:00]} 11. Qc2 {[%emt 0:01:08]} Bb4 {[%emt 0:00:00]} 12. a3 {[%emt 0:01:18]} Bxc3 {[%emt 0:00:00]} 13. Qxc3 {[%emt 0:00:05]} Ne4 {[%emt 0:00:00]} 14. Qc2 {[%emt 0:00:13]} c5 {[%emt 0:00:00]} 15. Rad1 {[%emt 0:02:59]} Qe7 {[%emt 0:00:00]} 16. dxc5 {[%emt 0:08:16]} Ndxc5 {[%emt 0:00:00]} 17. Nd4 {[%emt 0:05:34]} Rac8 {[%emt 0:00:00]} 18. Qb1 {[%emt 0:00:09]} Qf6 {[%emt 0:00:00]} 19. Bh3 {[%emt 0:12:15]} Ne6 {[%emt 0:00:00]} 20. Be3 {[%emt 0:00:43]} Rc4 {[%emt 0:00:00]} 21. Nxe6 {[%emt 0:12:01]} fxe6 {[%emt 0:00:00]} 22. f3 {[%emt 0:02:12]} Nd6 {[%emt 0:00:00]} 23. b3 {[%emt 0:03:06]} Rc7 {[%emt 0:00:00]} 24. Rc1 {[%emt 0:05:42]} Re7 {[%emt 0:00:00]} 25. Qd3 {[%emt 0:03:13]} e5 {[%emt 0:00:00]} 26. Rf1 {[%emt 0:00:31]} d4 {[%emt 0:00:00]} 27. Bd2 {[%emt 0:00:23]} Rd8 {[%emt 0:00:00]} 28. a4 {[%emt 0:05:08]} Nf7 {[%emt 0:00:00]} 29. Bb4 {[%emt 0:01:13]} Ree8 {[%emt 0:00:00]} 30. Rc7 {[%emt 0:00:59]} Ng5 {[%emt 0:00:00]} 31. Bd7 {[%emt 0:06:28]} Bd5 {[%emt 0:03:39]} 32. Bxe8 {[%emt 0:04:04]} Rxe8 {[%emt 0:00:18]} 33. Qb5 {[%emt 0:03:50]} Bf7 {[%emt 0:01:59]} 34. Be7 {[%emt 0:02:56]} Nh3+ {[%emt 0:01:24]} 35. Kg2 {[%emt 0:00:16]} Qh6 {[%emt 0:06:39]} 36. Qxe5 {[%emt 0:03:06]} d3 {[%emt 0:00:40]} 37. exd3 {[%emt 0:05:01]} Be6 {[%emt 0:00:14]} 38. Re1 {[%emt 0:00:17]} Bc8 {[%emt 0:01:06]} 39. Re2 {[%emt 0:01:10]} Qg6 {[%emt 0:00:25]} 40. Re4 {[%emt 0:00:50]} h5 {[%emt 0:00:25]} 41. Rxc8 {[%emt 0:00:26]} Rxc8 {[%emt 0:00:05]} 42. Kxh3 {[%emt 0:00:04]} Re8 {[%emt 0:00:51]} 1-0